bitfinex/quotes_BTCUSD_20260308
["timestamp","ask_amount","ask_price","bid_price","bid_amount"]
[1772953988105,0.01792703,67374.0,67364.0,0.0002]
[1772953988328,0.0175286,67372.0,67364.0,0.0002]
[1772953988527,0.00039843,67374.0,67367.0,0.0002]
[1772953988691,0.00148,67373.0,67367.0,0.0002]
[1772953989601,0.07461134,67374.0,67367.0,0.0002]
[1772953989896,0.00148,67373.0,67367.0,0.0002]
[1772953990353,0.07421461,67373.0,67367.0,0.0002]
[1772953990574,0.00148,67372.0,67367.0,0.0002]
[1772953990914,0.00148,67371.0,67367.0,0.0002]
[1772953991461,0.00148,67371.0,67368.0,0.05846394]
[1772953991664,0.00148,67371.0,67367.0,0.0002]
[1772953991824,0.00148,67371.0,67367.0,0.05866394]
[1772953992418,0.00148,67370.0,67368.0,0.07421921]
[1772953992959,0.07461134,67374.0,67367.0,0.05866394]
[1772953993159,0.00148,67370.0,67367.0,0.05866394]
[1772953993377,0.07461134,67374.0,67367.0,0.05866394]
[1772953993572,0.07461134,67374.0,67367.0,0.0002]
[1772953993573,0.00148,67373.0,67367.0,0.0002]
[1772953994098,0.00148,67372.0,67367.0,0.0002]
[1772953996860,0.07461134,67374.0,67367.0,0.0002]
[1772953997098,0.00148,67373.0,67367.0,0.0002]
[1772953997456,0.00148,67372.0,67367.0,0.0002]
[1772953997862,0.07461134,67374.0,67367.0,0.0002]
[1772953998198,0.00148,67373.0,67367.0,0.0002]
[1772953998398,0.0163904,67371.0,67361.0,0.0002]
[1772953998560,0.0163904,67371.0,67359.0,0.07422903]
[1772953998761,0.0163904,67371.0,67360.0,0.07442795]
[1772953999677,0.0163904,67369.0,67360.0,0.0002]
[1772954002048,0.07421921,67368.0,67360.0,0.0002]
[1772954002350,0.0178704,67367.0,67360.0,0.0002]
[1772954004253,0.07422141,67366.0,67360.0,0.0002]
[1772954004838,0.0178704,67367.0,67360.0,0.0002]
[1772954005022,0.09209108,67367.0,67360.0,0.0002]
[1772954006955,0.0178704,67367.0,67360.0,0.0002]
[1772954007510,0.09209083,67367.0,67360.0,0.0002]
[1772954008416,0.00148,67366.0,67360.0,0.0002]
[1772954008763,0.00148,67365.0,67360.0,0.0002]
[1772954008990,0.0163904,67364.0,67360.0,0.0002]
[1772954009585,0.00148,67363.0,67360.0,0.0002]
[1772954010475,0.09060977,67368.0,67360.0,0.0002]
[1772954010619,0.00148,67362.0,67360.0,0.0002]
[1772954010945,0.00022001,67372.0,67360.0,0.0002]
[1772954010946,0.07421626,67371.0,67360.0,0.0002]
[1772954011138,0.07421626,67371.0,67362.0,0.13268976]
[1772954011139,0.00148,67370.0,67362.0,0.13268976]
[1772954011647,0.00148,67369.0,67362.0,0.13268976]
[1772954011847,0.00148,67369.0,67360.0,0.07442702]
[1772954012054,0.0163904,67370.0,67360.0,0.07442702]
[1772954012286,0.00148,67368.0,67360.0,0.07442702]
[1772954013284,0.26627595,67376.0,67360.0,0.07442702]
[1772954013443,0.00148,67373.0,67362.0,0.05533401]
[1772954014268,0.00148,67373.0,67360.0,0.07442702]
[1772954014481,0.0163904,67372.0,67360.0,0.07442702]
[1772954014979,0.0163904,67372.0,67361.0,0.0002]
[1772954015160,0.09082561,67372.0,67362.0,0.07422582]
[1772954015998,0.0163904,67371.0,67362.0,0.07422582]
[1772954017270,0.0163904,67371.0,67361.0,0.12975983]
[1772954017922,0.0163904,67369.0,67361.0,0.0002]
[1772954021856,0.09060901,67369.0,67361.0,0.0002]
[1772954022182,0.09060899,67369.0,67361.0,0.0002]
[1772954022393,0.07443521,67372.0,67361.0,0.05553401]
[1772954022741,0.00148,67371.0,67361.0,0.05553401]
[1772954023169,0.00148,67370.0,67361.0,0.05553401]
[1772954023529,0.09013577,67372.0,67361.0,0.05553401]
[1772954023720,0.07421701,67370.0,67362.0,0.07422582]
[1772954024167,0.00148,67369.0,67362.0,0.07422582]
[1772954024673,0.00148,67368.0,67362.0,0.07422582]
[1772954024877,0.01592057,67372.0,67362.0,0.07422582]
[1772954025027,0.00148,67368.0,67362.0,0.07422582]
[1772954026146,0.01570056,67367.0,67361.0,0.07442689]
[1772954026369,0.01570056,67367.0,67361.0,0.0002]
[1772954026965,0.01570056,67366.0,67361.0,0.0002]
[1772954027893,0.07422122,67367.0,67361.0,0.0002]
[1772954029546,0.00148,67368.0,67361.0,0.0002]
[1772954029956,0.0742179,67370.0,67366.0,0.11774252]
[1772954029957,0.00148,67367.0,67366.0,0.11774252]
[1772954030174,0.00148,67367.0,67366.0,0.26492067]
[1772954031003,0.00148,67367.0,67366.0,0.14717815]
[1772954031522,0.01718056,67367.0,67366.0,0.14717815]
[1772954034459,0.00022001,67371.0,67356.0,0.06101755]
[1772954034660,0.074436,67371.0,67362.0,0.0002]
[1772954034896,0.00148,67370.0,67363.0,0.06101755]
[1772954035413,0.01718056,67370.0,67362.0,0.0002]
[1772954037433,0.07421811,67369.0,67362.0,0.0002]
[1772954037683,0.00148,67368.0,67362.0,0.0002]
[1772954038135,0.00132785,67368.0,67362.0,0.0002]
[1772954038345,0.07421811,67369.0,67362.0,0.0002]
[1772954038543,0.00148,67367.0,67362.0,0.0002]
[1772954038972,0.00148,67366.0,67362.0,0.0002]
[1772954039333,0.001,67368.0,67362.0,0.0002]
[1772954039529,0.00148,67365.0,67362.0,0.06121755]
[1772954039913,0.00148,67364.0,67362.0,0.06121755]
[1772954040484,0.00148,67363.0,67362.0,0.0002]
[1772954040610,0.07421712,67370.0,67362.0,0.01675761]
[1772954040812,0.07443564,67372.0,67363.0,0.06072155]
[1772954041219,0.00148,67370.0,67363.0,0.06072155]
[1772954041776,0.00148,67369.0,67363.0,0.06072155]
[1772954042143,0.00170001,67369.0,67363.0,0.06072155]
[1772954042531,0.00170001,67369.0,67363.0,0.13494618]
[1772954043169,0.00148,67368.0,67363.0,0.07422463]
[1772954043379,0.00148,67367.0,67365.0,0.01642228]
[1772954043560,0.00148,67367.0,67366.0,0.06008555]
[1772954044368,0.00148,67367.0,67366.0,0.13430696]
[1772954046249,0.00022001,67372.0,67367.0,0.06008555]
[1772954046438,0.00015,67375.0,67368.0,0.06008555]
[1772954046739,0.00148,67374.0,67371.0,0.05946355]
[1772954047438,0.001,67372.0,67371.0,0.05946355]
[1772954047789,0.00148,67374.0,67368.0,0.00021242]
[1772954047992,0.00148,67374.0,67369.0,0.05946355]
[1772954048399,0.00148,67374.0,67371.0,0.05946355]
[1772954048710,0.00148,67374.0,67370.0,0.07421701]
[1772954048924,0.00148,67374.0,67370.0,0.13368056]
[1772954049631,0.00148,67374.0,67370.0,0.07421701]
[1772954049834,0.00148,67374.0,67370.0,0.13368056]
[1772954051592,0.00022001,67376.0,67370.0,0.13368056]
[1772954051792,0.00148,67375.0,67370.0,0.13368056]
[1772954051968,0.00148,67375.0,67370.0,0.07421701]
[1772954052172,0.00148,67375.0,67371.0,0.05946355]
[1772954052378,0.00148,67375.0,67370.0,0.07421701]
[1772954053627,0.00148,67375.0,67371.0,0.05946355]
[1772954054383,0.00148,67375.0,67372.0,0.0742148]
[1772954054780,0.00148,67375.0,67372.0,0.13367835]
[1772954055209,0.01703391,67381.0,67372.0,0.13367835]
[1772954055210,0.07442071,67385.0,67373.0,0.05938593]
[1772954055416,0.07442071,67385.0,67375.0,0.05938593]
[1772954055417,0.00148,67382.0,67375.0,0.05938593]
[1772954055588,0.00022001,67385.0,67375.0,0.05938593]
[1772954055787,0.00148,67382.0,67375.0,0.05938593]
[1772954056027,0.00022001,67385.0,67375.0,0.05938593]
[1772954056202,0.00022001,67385.0,67374.0,0.05938593]
[1772954056411,0.00148,67382.0,67376.0,0.05938593]
[1772954056611,0.00148,67382.0,67378.0,0.05938593]
[1772954056782,0.00022001,67385.0,67378.0,0.05938593]
[1772954056986,0.00148,67381.0,67378.0,0.05938593]
[1772954057388,0.00022001,67385.0,67378.0,0.05938593]
[1772954057637,0.00148,67384.0,67378.0,0.05938593]
[1772954058018,0.00148,67383.0,67378.0,0.0761656]
[1772954058219,0.00148,67383.0,67379.0,0.05938593]
[1772954058620,0.00148,67382.0,67381.0,0.05938593]
[1772954059014,0.00022001,67386.0,67381.0,0.05938593]
[1772954059239,0.00148,67382.0,67381.0,0.05938593]
[1772954059801,0.00148,67382.0,67375.0,0.0742115]
[1772954060029,0.01711323,67380.0,67374.0,0.07421234]
[1772954060208,0.01711323,67380.0,67375.0,0.14660294]
[1772954060428,0.01711323,67380.0,67374.0,0.07421234]
[1772954060641,0.01711323,67380.0,67375.0,0.14659996]
[1772954060840,0.01711323,67380.0,67374.0,0.07421234]
[1772954061801,0.01711323,67380.0,67372.0,0.0742126]
[1772954062005,0.01711323,67380.0,67370.0,0.05938593]
[1772954062142,0.01711323,67379.0,67370.0,0.07421661]
[1772954064074,0.09132038,67379.0,67370.0,0.07421661]
[1772954064769,0.01711323,67379.0,67370.0,0.07421661]
[1772954064971,0.01711323,67378.0,67369.0,0.07421701]
[1772954066404,0.01711323,67378.0,67369.0,0.13360294]
[1772954066808,0.00148,67377.0,67369.0,0.13360294]
[1772954067187,0.01711323,67378.0,67369.0,0.13360294]
[1772954067388,0.00148,67377.0,67369.0,0.13360294]
[1772954067590,0.00148,67377.0,67370.0,0.05938593]
[1772954067809,0.00148,67376.0,67370.0,0.05938593]
[1772954069011,0.00148,67376.0,67371.0,0.0742159]
[1772954069219,0.00148,67375.0,67372.0,0.05938593]
[1772954069547,0.00148,67375.0,67373.0,0.05938593]
[1772954069919,0.07441896,67387.0,67372.0,0.01677967]
[1772954070141,0.00148,67385.0,67373.0,0.05938593]
[1772954070548,0.00148,67384.0,67373.0,0.05938593]
[1772954070942,0.07441955,67386.0,67373.0,0.05938593]
[1772954071110,0.00148,67383.0,67375.0,0.05938593]
[1772954071527,0.00148,67382.0,67375.0,0.05938593]
[1772954072527,0.00148,67381.0,67375.0,0.05938593]
[1772954072741,0.00148,67382.0,67374.0,0.0742126]
[1772954072911,0.00022001,67386.0,67376.0,0.06178242]
[1772954073109,0.00148,67385.0,67378.0,0.06178242]
[1772954073509,0.00148,67384.0,67378.0,0.06178242]
[1772954073931,0.00022001,67387.0,67378.0,0.06178242]
[1772954074130,0.0003022,67392.0,67378.0,0.06178242]
[1772954074306,0.0003022,67392.0,67382.0,0.06178242]
[1772954074539,1e-08,67396.0,67383.0,0.06178242]
[1772954074732,1e-08,67400.0,67386.0,0.06178242]
[1772954075078,1e-08,67400.0,67391.0,0.07419388]
[1772954075284,1e-08,67400.0,67393.0,0.06178242]
[1772954075718,0.09128885,67408.0,67393.0,0.01677967]
[1772954075719,0.01711323,67408.0,67393.0,0.01677967]
[1772954075877,0.01859323,67408.0,67396.0,0.06178242]
[1772954076217,0.00148,67405.0,67396.0,0.06178242]
[1772954076566,0.0001226,67412.0,67396.0,0.06178242]
[1772954076779,0.00148,67411.0,67396.0,0.00011236]
[1772954076983,0.0001226,67412.0,67400.0,0.06178242]
[1772954077188,0.00148,67411.0,67404.0,0.06178242]
[1772954077540,0.0001226,67412.0,67404.0,0.06178242]
[1772954077751,0.07416643,67416.0,67404.0,0.06178242]
[1772954077752,0.00148,67411.0,67404.0,0.06178242]
[1772954078614,0.00148,67411.0,67402.0,0.07418067]
[1772954079617,0.00022001,67407.0,67402.0,0.07418067]
[1772954079823,0.00022001,67407.0,67403.0,0.06178242]
[1772954080281,0.00022001,67407.0,67404.0,0.07417957]
[1772954082464,0.00022001,67407.0,67403.0,0.07417966]
[1772954082696,0.00022001,67407.0,67403.0,0.13596208]
[1772954083199,0.00022001,67407.0,67403.0,0.07417966]
[1772954083379,0.00022001,67407.0,67404.0,0.06178242]
[1772954084496,0.00022001,67407.0,67405.0,0.07417847]
[1772954085316,0.07417737,67406.0,67394.0,0.0001478]
[1772954085480,0.07417737,67406.0,67386.0,0.07419863]
[1772954085481,0.01776985,67404.0,67386.0,0.07419863]
[1772954085685,0.01776985,67402.0,67386.0,0.07419863]
[1772954085979,0.01776985,67402.0,67386.0,0.13598105]
[1772954086292,0.01776985,67402.0,67387.0,0.06178242]
[1772954087753,0.07418287,67401.0,67387.0,0.13597991]
[1772954087913,0.01776985,67400.0,67387.0,0.13597991]
[1772954088130,0.01776985,67400.0,67385.0,0.07435326]
[1772954088573,0.01776985,67400.0,67385.0,0.13613568]
[1772954089473,0.01776985,67400.0,67386.0,0.06178242]
[1772954090344,0.07418507,67399.0,67388.0,0.06178242]
[1772954090556,0.07566507,67399.0,67388.0,0.06178242]
[1772954090760,0.07418507,67399.0,67388.0,0.06178242]
[1772954090981,0.00148,67398.0,67388.0,0.06178242]
[1772954092441,0.07428928,67404.0,67391.0,0.06178242]
[1772954092442,0.07418168,67403.0,67391.0,0.06178242]
[1772954092646,0.07566225,67402.0,67391.0,0.06178242]
[1772954092816,0.06037042,67400.0,67382.0,0.07420379]
[1772954093128,0.01776985,67399.0,67382.0,0.07420379]
[1772954093624,0.01776985,67399.0,67383.0,0.06178242]
[1772954094601,0.01776985,67397.0,67384.0,0.07420159]
[1772954094813,0.00148,67396.0,67385.0,0.06178242]
[1772954097585,0.09195809,67397.0,67386.0,0.07419938]
[1772954097787,0.00148,67396.0,67387.0,0.06178242]
[1772954098213,0.00148,67395.0,67387.0,0.06178242]
[1772954098662,0.09195809,67397.0,67387.0,0.06178242]
[1772954098840,0.00148,67394.0,67387.0,0.06178242]
[1772954099238,0.00148,67393.0,67387.0,0.06178242]
[1772954099850,0.00148,67393.0,67387.0,0.13597963]
[1772954100057,0.00148,67393.0,67387.0,0.07419721]
[1772954100668,0.00148,67393.0,67387.0,0.07439721]
[1772954100898,0.07567188,67393.0,67387.0,0.07439721]
[1772954101085,0.01776985,67392.0,67382.0,0.07420358]
[1772954101633,0.01776985,67392.0,67382.0,0.01646977]
[1772954101957,0.01776985,67390.0,67380.0,0.0002]
[1772954103075,0.07419388,67392.0,67382.0,0.01742309]
[1772954103383,0.07419388,67392.0,67383.0,0.06214101]
[1772954104100,0.07419125,67394.0,67384.0,0.07420159]
[1772954104296,0.00148,67391.0,67384.0,0.1363426]
[1772954104494,0.07418947,67395.0,67385.0,0.06214101]
[1772954104670,0.00148,67394.0,67387.0,0.06184501]
[1772954105059,0.00148,67393.0,67387.0,0.06184501]
[1772954106167,0.00148,67393.0,67387.0,0.13604234]
[1772954106402,0.07567208,67393.0,67387.0,0.06184501]
[1772954106617,0.00148,67392.0,67387.0,0.13604317]
[1772954107437,0.00148,67392.0,67388.0,0.06184501]
[1772954108216,0.00148,67391.0,67384.0,0.07420067]
[1772954108440,0.01880513,67391.0,67384.0,0.07420067]
[1772954108639,0.00148,67391.0,67384.0,0.07420067]
[1772954108851,0.00148,67391.0,67384.0,0.13604568]
[1772954109557,0.00148,67391.0,67384.0,0.07420067]
[1772954109967,0.00148,67390.0,67384.0,0.13604568]
[1772954110356,0.00022001,67393.0,67385.0,0.06184501]
[1772954110556,0.00148,67393.0,67385.0,0.06184501]
[1772954110755,0.00148,67393.0,67384.0,0.07420067]
[1772954110756,0.0169379,67392.0,67384.0,0.07420067]
[1772954111682,0.0169379,67392.0,67380.0,0.07440522]
[1772954112233,0.07419388,67391.0,67380.0,0.07440522]
[1772954112436,0.0169379,67390.0,67380.0,0.0002]
[1772954114380,0.0169379,67388.0,67380.0,0.0002]
[1772954114581,0.0169379,67386.0,67380.0,0.0002]
[1772954115341,0.00148,67386.0,67380.0,0.06174901]
[1772954116998,0.00148,67386.0,67382.0,0.06154901]
[1772954120419,0.00148,67386.0,67382.0,0.13575244]
[1772954121365,0.00148,67386.0,67383.0,0.06154901]
[1772954122797,0.00148,67386.0,67384.0,0.06125301]
[1772954123337,0.074197,67389.0,67384.0,0.06125301]
[1772954123544,0.00148,67388.0,67384.0,0.06125301]
[1772954124073,0.00148,67388.0,67383.0,0.07420256]
[1772954124657,0.00148,67388.0,67384.0,0.06125301]
[1772954125181,0.00148,67387.0,67384.0,0.06125301]
[1772954125971,0.00148,67387.0,67381.0,0.07440412]
[1772954126911,0.00148,67387.0,67381.0,0.0002]
[1772954127980,0.00148,67387.0,67382.0,0.06125301]
[1772954128588,0.07441474,67391.0,67382.0,0.06125301]
[1772954128873,0.00148,67390.0,67382.0,0.06125301]
[1772954130585,0.07419608,67389.0,67382.0,0.13545599]
[1772954132146,0.00022001,67394.0,67385.0,0.06095701]
[1772954132346,0.00148,67398.0,67385.0,0.07420048]
[1772954132547,0.00010641,67404.0,67385.0,0.07420048]
[1772954132548,0.00010641,67404.0,67389.0,0.01727016]
[1772954132768,0.00148,67401.0,67391.0,0.01727016]
[1772954132971,0.07428608,67404.0,67391.0,0.01727016]
[1772954132972,0.00148,67400.0,67392.0,0.06066101]
[1772954133175,0.00148,67399.0,67392.0,0.06066101]
[1772954133372,0.07455015,67407.0,67389.0,0.06066101]
[1772954133578,0.00148,67406.0,67391.0,0.01727016]
[1772954133739,0.00148,67406.0,67394.0,0.06036501]
[1772954133939,0.07455015,67407.0,67394.0,0.06036501]
[1772954134139,0.00022001,67401.0,67394.0,0.06036501]
[1772954134487,0.00022001,67401.0,67395.0,0.06036501]
[1772954134692,0.00148,67406.0,67397.0,0.06032101]
[1772954134693,0.07565783,67406.0,67397.0,0.06032101]
[1772954134873,0.0756579,67406.0,67397.0,0.06032101]
[1772954135473,0.0169379,67405.0,67397.0,0.06032101]
[1772954135880,0.0169379,67405.0,67396.0,0.07418837]
[1772954136588,0.0169379,67405.0,67396.0,0.13450938]
[1772954137283,0.00148,67406.0,67394.0,0.06032101]
[1772954137455,0.07565777,67406.0,67395.0,0.06032101]
[1772954137663,0.00148,67405.0,67395.0,0.06032101]
[1772954137861,0.00148,67405.0,67397.0,0.06032101]
[1772954139274,0.00148,67404.0,67400.0,0.01798548]
[1772954139481,0.00148,67403.0,67400.0,0.01798548]
[1772954139685,0.00148,67403.0,67401.0,0.05939619]
[1772954140289,0.00148,67403.0,67398.0,0.07418617]
[1772954140290,0.00148,67403.0,67399.0,0.05880419]
[1772954140494,0.07439658,67407.0,67399.0,0.01798548]
[1772954140701,0.00148,67406.0,67400.0,0.05880419]
[1772954141349,0.00022001,67407.0,67401.0,0.07418287]
[1772954141655,0.00148,67406.0,67402.0,0.05880419]
[1772954142134,0.00148,67406.0,67394.0,0.13299446]
[1772954142135,0.01772699,67405.0,67394.0,0.13299446]
[1772954142909,0.01772699,67405.0,67394.0,0.07419027]
[1772954143067,0.01772699,67405.0,67387.0,0.13300216]
[1772954143277,0.01772699,67405.0,67380.0,0.05900419]
[1772954143278,0.07418617,67398.0,67380.0,0.05900419]
[1772954143485,0.01920699,67397.0,67381.0,0.07440489]
[1772954144386,0.01920699,67397.0,67381.0,0.0002]
[1772954144622,0.01772699,67390.0,67377.0,0.07420929]
[1772954144818,0.01772699,67388.0,67377.0,0.07420929]
[1772954145452,0.01772699,67386.0,67377.0,0.07420929]
[1772954146024,0.07419828,67387.0,67368.0,0.0002]
[1772954146025,0.01772699,67384.0,67368.0,0.0002]
[1772954146248,0.12313282,67387.0,67368.0,0.0002]
[1772954146249,0.01772699,67379.0,67368.0,0.0002]
[1772954146450,0.01772699,67379.0,67367.0,0.0002]
[1772954147171,0.01783329,67379.0,67367.0,0.0002]
[1772954147575,0.01772699,67377.0,67363.0,0.0002]
[1772954147810,0.01772699,67375.0,67363.0,0.0002]
[1772954148084,0.01772699,67372.0,67362.0,0.0002]
[1772954149679,0.01772699,67370.0,67362.0,0.0002]
[1772954149877,0.01920699,67369.0,67362.0,0.0002]
[1772954151932,0.07421921,67368.0,67362.0,0.0002]
[1772954156249,0.07521921,67368.0,67362.0,0.06012034]
[1772954156557,0.07421921,67368.0,67362.0,0.06012034]
[1772954156863,0.07521921,67368.0,67362.0,0.06012034]
[1772954157048,0.07421921,67368.0,67362.0,0.06012034]
[1772954157557,0.07621921,67368.0,67362.0,0.06012034]
[1772954157905,0.07421425,67373.0,67364.0,0.01798548]
[1772954158216,0.07421425,67373.0,67365.0,0.05992034]
[1772954158426,0.00148,67372.0,67365.0,0.05992034]
[1772954158633,0.07569499,67372.0,67365.0,0.13414218]
[1772954158858,0.00148,67371.0,67365.0,0.05992034]
[1772954159250,0.07421499,67372.0,67365.0,0.05992034]
[1772954159475,0.00148,67370.0,67365.0,0.05992034]
[1772954159830,0.00148,67370.0,67362.0,0.0002]
[1772954160036,0.01772699,67369.0,67361.0,0.0002]
[1772954160232,0.01772699,67369.0,67361.0,0.07442662]
[1772954160622,0.07421921,67368.0,67361.0,0.0002]
[1772954162135,0.07421921,67368.0,67365.0,0.0002]
[1772954162336,0.09067987,67368.0,67365.0,0.0002]
[1772954163504,0.07421921,67368.0,67365.0,0.0002]
[1772954163711,0.01646066,67367.0,67365.0,0.0002]
[1772954166157,0.07421921,67368.0,67365.0,0.0002]
[1772954166308,0.09067987,67368.0,67365.0,0.0002]
[1772954166504,0.01646066,67367.0,67358.0,0.00035]
[1772954168418,0.01709811,67365.0,67358.0,0.00035]
[1772954168614,0.01857811,67364.0,67358.0,0.00035]
[1772954169961,0.02057811,67364.0,67358.0,0.00035]
[1772954170165,0.01957811,67364.0,67352.0,0.02952974]
[1772954170462,0.01709811,67362.0,67351.0,0.0002]
[1772954172469,0.07422692,67361.0,67351.0,0.0002]
[1772954172668,0.09132503,67361.0,67351.0,0.0002]
[1772954173682,0.01709811,67360.0,67351.0,0.0002]
[1772954174487,0.07422913,67359.0,67351.0,0.0002]
[1772954174711,0.00148,67358.0,67351.0,0.0002]
[1772954175804,0.00148,67358.0,67351.0,0.05286984]
[1772954176406,0.00148,67358.0,67352.0,0.07423684]
[1772954176610,0.07444026,67368.0,67354.0,0.01718454]
[1772954176810,0.00148,67367.0,67352.0,0.07423684]
[1772954177013,0.00148,67366.0,67352.0,0.07423684]
[1772954177213,0.07444026,67368.0,67352.0,0.07423684]
[1772954177420,0.15067994,67373.0,67352.0,0.07423684]
[1772954177421,0.0742159,67371.0,67355.0,0.01718454]
[1772954177617,0.00022001,67375.0,67359.0,0.01718454]
[1772954177820,0.00148,67374.0,67362.0,0.05227141]
[1772954178006,0.00148,67374.0,67364.0,0.05227141]
[1772954178839,0.075693,67374.0,67365.0,0.07422251]
[1772954179079,0.01709811,67373.0,67364.0,0.12649482]
[1772954179251,0.01709811,67373.0,67364.0,0.05227141]
[1772954179551,0.01709811,67373.0,67363.0,0.07422255]
[1772954179743,0.01709811,67373.0,67361.0,0.07422634]
[1772954180043,0.01709811,67373.0,67361.0,0.12649775]
[1772954180220,0.01709811,67373.0,67361.0,0.07422634]
[1772954180424,0.01709811,67373.0,67362.0,0.05227141]
[1772954182028,0.075693,67374.0,67363.0,0.07422472]
[1772954182231,0.00148,67373.0,67365.0,0.05227141]
[1772954182879,0.00170001,67373.0,67365.0,0.05227141]
[1772954184276,0.0742148,67372.0,67362.0,0.0002]
[1772954185671,0.0742148,67372.0,67362.0,0.05247141]
[1772954187405,0.0742148,67372.0,67363.0,0.07422472]
[1772954189870,0.01709811,67371.0,67363.0,0.07422472]
[1772954190308,0.01709811,67371.0,67355.0,0.0002]
[1772954191162,0.01709811,67369.0,67355.0,0.0002]
[1772954191496,0.01709811,67367.0,67355.0,0.0002]
[1772954191701,0.01709811,67365.0,67355.0,0.0002]
[1772954193672,0.07422362,67364.0,67355.0,0.0002]
[1772954193989,0.09132173,67364.0,67355.0,0.0002]
[1772954195236,0.07422362,67364.0,67355.0,1e-08]
[1772954195438,0.04310114,67362.0,67344.0,0.0002]
[1772954195612,0.01709811,67359.0,67345.0,0.00031942]
[1772954195774,0.01709811,67357.0,67345.0,0.00031942]
[1772954196790,0.01709811,67357.0,67345.0,0.05346794]
[1772954196919,0.00148,67356.0,67345.0,0.05346794]
[1772954197352,0.07422483,67363.0,67345.0,0.05346794]
[1772954197695,0.00148,67362.0,67349.0,0.07424015]
[1772954197968,0.00148,67362.0,67353.0,0.01718454]
[1772954198165,0.00148,67361.0,67356.0,0.05314852]
[1772954198395,0.00148,67361.0,67358.0,0.05314852]
[1772954200551,0.00148,67360.0,67358.0,0.05314852]
[1772954200759,0.00148,67361.0,67357.0,0.07423122]
[1772954200957,0.00148,67361.0,67359.0,0.05314852]
[1772954201903,0.00148,67361.0,67352.0,0.07423642]
[1772954201904,0.00022001,67373.0,67349.0,0.07423574]
[1772954202064,0.00148,67372.0,67350.0,0.05314852]
[1772954202257,0.00148,67372.0,67353.0,0.01693677]
[1772954202258,0.04897823,67370.0,67353.0,0.01693677]
[1772954202452,0.065507,67370.0,67355.0,0.01693677]
[1772954202873,0.04897823,67370.0,67355.0,0.01693677]
[1772954203082,0.01652877,67369.0,67347.0,0.07572235]
[1772954203276,0.01652877,67369.0,67348.0,0.05314852]
[1772954203458,0.065507,67360.0,67347.0,0.07424235]
[1772954203680,0.065507,67360.0,67355.0,0.0002]
[1772954203681,0.00148,67359.0,67355.0,0.0002]
[1772954204068,0.00148,67358.0,67356.0,0.05314852]
[1772954204252,0.00148,67357.0,67356.0,0.07008529]
[1772954204881,0.00148,67357.0,67355.0,0.0002]
[1772954205608,0.00148,67357.0,67348.0,0.0002]
[1772954206186,0.07423243,67356.0,67348.0,0.0002]
[1772954206356,0.12793135,67365.0,67348.0,0.01713677]
[1772954206357,0.01652877,67364.0,67348.0,0.01713677]
[1772954206560,0.0757054,67363.0,67349.0,0.01693677]
[1772954206758,0.0757054,67363.0,67349.0,0.05342212]
[1772954206987,0.0757054,67363.0,67350.0,0.01693677]
[1772954207797,0.0757054,67363.0,67350.0,0.01721037]
[1772954208378,0.0757054,67363.0,67351.0,0.07423794]
[1772954208805,0.0757054,67363.0,67351.0,0.07451154]
[1772954209328,0.01652877,67362.0,67351.0,0.07451154]
[1772954209767,0.01652877,67362.0,67347.0,0.0001634]
[1772954209768,0.01663107,67362.0,67330.0,0.0742611]
[1772954209904,0.01652877,67361.0,67342.0,0.01693677]
[1772954210092,0.01652877,67361.0,67343.0,0.07008529]
[1772954210489,0.01652877,67359.0,67344.0,0.07424566]
[1772954210939,0.01663107,67359.0,67344.0,0.07424566]
[1772954211174,0.01663107,67359.0,67350.0,0.0002]
[1772954211759,0.01663107,67359.0,67344.0,0.07424566]
[1772954211910,0.0001023,67359.0,67347.0,0.01693677]
[1772954212119,0.0001023,67359.0,67344.0,0.07424566]
[1772954212120,0.00148,67358.0,67350.0,0.05314852]
[1772954212318,0.00148,67357.0,67351.0,0.01693677]
[1772954212827,0.0001023,67357.0,67352.0,0.07423684]
[1772954213165,0.01800877,67356.0,67351.0,0.07423792]
[1772954213544,0.00148,67356.0,67351.0,0.07423792]
[1772954213927,0.0015823,67356.0,67351.0,0.07423792]
[1772954214481,0.0015823,67356.0,67347.0,0.07424235]
[1772954214699,0.00148,67358.0,67347.0,0.07433708]
[1772954215005,0.07448335,67364.0,67347.0,0.07433708]
[1772954215181,0.00148,67363.0,67347.0,0.07433708]
[1772954215328,0.00148,67363.0,67348.0,0.05314852]
[1772954215528,0.00148,67362.0,67351.0,0.01693677]
[1772954215749,0.00148,67362.0,67353.0,0.05314852]
[1772954215953,0.00148,67361.0,67355.0,0.07008529]
[1772954216161,0.00148,67361.0,67357.0,0.05314852]
[1772954216366,0.00148,67361.0,67357.0,0.07008529]
[1772954216574,0.0744825,67364.0,67358.0,0.07423023]
[1772954216770,0.00148,67360.0,67358.0,0.07423023]
[1772954218096,0.0002587,67364.0,67358.0,0.07423023]
[1772954218268,0.00148,67360.0,67358.0,0.07423023]
[1772954218656,0.00148,67360.0,67355.0,0.07423257]
[1772954220431,0.07444578,67363.0,67355.0,0.07423257]
[1772954220632,0.00148,67360.0,67355.0,0.07423257]
[1772954221119,0.00148,67366.0,67355.0,0.07423257]
[1772954221355,0.08951804,67372.0,67358.0,0.01693677]
[1772954221555,0.00148,67366.0,67360.0,0.05314852]
[1772954221759,0.00148,67366.0,67362.0,0.01693677]
[1772954222587,0.00148,67369.0,67362.0,0.01693677]
[1772954222881,0.09136099,67375.0,67355.0,0.07423257]
[1772954222882,0.00022001,67382.0,67363.0,0.00148]
[1772954223159,0.00148,67381.0,67365.0,0.07422251]
[1772954223313,0.00148,67380.0,67370.0,0.01901855]
[1772954223498,0.00148,67380.0,67372.0,0.01901855]
[1772954224533,0.00187851,67380.0,67372.0,0.01901855]
[1772954225249,0.00187851,67380.0,67373.0,0.0742137]
[1772954226823,0.00209852,67380.0,67373.0,0.0742137]
[1772954227755,0.00209852,67380.0,67371.0,0.0742137]
[1772954228487,0.00209852,67380.0,67368.0,0.00148]
[1772954228693,0.0004,67375.0,67369.0,0.05792956]
[1772954229093,0.0004,67375.0,67371.0,0.05477629]
[1772954229293,0.0004,67375.0,67372.0,0.05792956]
[1772954230087,0.0004,67375.0,67373.0,0.0742137]
[1772954230768,0.00575,67376.0,67373.0,0.0742137]
[1772954231376,0.00034851,67387.0,67373.0,0.0742137]
[1772954231673,0.00148,67385.0,67374.0,0.06138154]
[1772954232795,9.459e-05,67386.0,67375.0,0.0742115]
[1772954232998,9.459e-05,67386.0,67376.0,0.05477629]
[1772954233328,0.00148,67385.0,67377.0,0.00662527]
[1772954233645,0.07419381,67392.0,67375.0,0.0742115]
[1772954233646,0.09491732,67400.0,67379.0,0.05477629]
[1772954233786,0.00148,67399.0,67383.0,0.05477629]